Cogmind - Beta 13 @@@ ROGUE MODE // 2024.05.15 @ 18:05:50 // AFD2019/Pay2Buy Player: boggy Result: Self-destructed Performance ------------- Evolutions (3) 1500 Regions Visited (9) 1800 Robots Destroyed (46) 230 Value Destroyed (1235) 1235 Prototype IDs (14) 280 Alien Tech Used (1) 200 Bonus (795) 795 TOTAL SCORE: 6040 Bonus ------- Follower Combat Kills 64 Entered DSFs 500 Aligned with FarCom 300 Friendly Fire -69 Cogmind --------- Core Integrity 556/700 Matter 92/300 Energy 28/200 System Corruption 0% Temperature Cool (0) Movement Rolling (100) Location -7/DSF Parts ------- > --- POWER (1) -------- Cold Fusion Reactor > --- PROPULSION (3) --- Armored Huge Wheel > --- UTILITY (6) ------ Advanced Weight Redist. System Microactuators Focal Shield Improved Shield Generator > --- WEAPON (3) ------- Hypervelocity Gauss Rifle > --- INVENTORY (10) --- Coil Gun Coil Gun Carbide Saw Makeshift Spear Signal Generator Peak State ------------ > --- POWER ------------ Micro Nuclear Core > --- PROPULSION ------- Biomechanical Wings Biomechanical Wings Biomechanical Wings > --- UTILITY ---------- Advanced Weight Redist. System 0b10 Decoder Chip [Scout] Microactuators Actuator Array Reaction Control System Improved Shield Generator > --- WEAPON ----------- Power Sword Carbide Saw Carbide Saw > --- INVENTORY -------- Makeshift Spear Signal Generator [Rating: 59] Favorites ----------- Power Cooled Ion Engine Engine Cooled Ion Engine Power Core Micro Nuclear Core Reactor Cold Fusion Reactor Propulsion Subdweller Monowheel Wheel Subdweller Monowheel Hover Unit Aerolev Unit Flight Unit Makeshift Flight Unit Utility Shield Generator Device Shield Generator Processor 0b10 Decoder Chip [Scout] Protection Hardened Medium Armor Plating Weapon Ion Cannon Energy Gun Heavy EM Pulse Gun Energy Cannon Ion Cannon Ballistic Gun Shotgun Ballistic Cannon Heavy Flak Cannon Launcher EMP Blaster Special Weapon CPS Tube Impact Weapon Mace Slashing Weapon Blade Saw Piercing Weapon Makeshift Spear Build | -11 -10 -10 -9 -9 -9 -8 -8 -7 -7 ------- Run | Yrd Mat Min Mat Min Exi Min Mat Fac DSF Slots Evolved 6 | . . . 2 . . . 2 2 . Power . | . . . . . . . . . . Propulsion 1 | . . . . . . . . 1 . Utility 4 | . . . 1 . . . 2 1 . Weapon 1 | . . . 1 . . . . . . Parts Attached 34 | . 5 . 3 2 2 1 4 . 17 Power 1 | . . . . . . . . . 1 Engine . | . . . . . . . . . . Core 1 | . . . . . . . . . 1 Reactor . | . . . . . . . . . . Propulsion 18 | . 4 . . 1 . . 4 . 9 Treads . | . . . . . . . . . . Leg . | . . . . . . . . . . Wheel 3 | . 2 . . 1 . . . . . Hover 2 | . . . . . . . 2 . . Flight 13 | . 2 . . . . . 2 . 9 Utility 2 | . . . . 1 . . . . 1 Device 2 | . . . . 1 . . . . 1 Storage . | . . . . . . . . . . Processor . | . . . . . . . . . . Hackware . | . . . . . . . . . . Protection . | . . . . . . . . . . Artifact . | . . . . . . . . . . Weapon 13 | . 1 . 3 . 2 1 . . 6 Energy Gun . | . . . . . . . . . . Energy Cannon 3 | . . . 2 . 1 . . . . Ballistic Gun 5 | . . . 1 . . . . . 4 Ballistic Cannon 1 | . . . . . . . . . 1 Launcher . | . . . . . . . . . . Special Weapon . | . . . . . . . . . . Impact Weapon 1 | . 1 . . . . . . . . Slashing Weapon 2 | . . . . . . 1 . . 1 Piercing Weapon 1 | . . . . . 1 . . . . Special Melee Weapon . | . . . . . . . . . . Unidentified Prototypes . | . . . . . . . . . . Parts Lost 10 | . . . . 2 . 3 . . 5 Power . | . . . . . . . . . . Propulsion 1 | . . . . . . . . . 1 Utility 7 | . . . . 2 . 1 . . 4 Weapon 2 | . . . . . . 2 . . . Highest Loss Streak 2 | . . . . 1 . 2 . . 2 To Critical Strikes . | . . . . . . . . . . Average Slot Usage (%) 86 | . 84 85 90 88 81 96 89 89 80 Engine 8 | . 11 14 11 11 10 8 . . . Core 1 | . . . . . . . 9 7 5 Wheel 10 | . 21 28 22 13 7 . . . 1 Hover 4 | . . . . . 6 22 17 . . Flight 3 | . 6 . . . . . . 23 16 Device 24 | . 14 14 19 20 17 33 44 38 40 Protection 5 | . 4 . 8 11 7 . . . . Energy Gun 1 | . 6 . . . . . . . . Energy Cannon 15 | . 2 28 30 33 22 . . . . Impact Weapon 1 | . 9 . . . . . . . . Slashing Weapon 5 | . . . . . 6 27 19 12 9 Naked Turns 4 | . . . . . 4 . . . . Heaviest Build 46 | 8 21 16 38 38 38 20 26 27 46 Greatest Support 40 | 8 40 40 40 40 28 25 25 27 37 Greatest Overweight (x) 2 | . . . . 1 1 . 1 . 2 Average Overweight (x) . | . . . . . . . . . . Largest Inventory Capacity 10 | 10 10 10 10 10 10 10 10 10 10 Average Capacity 10 | 10 10 10 10 10 10 10 10 10 10 Most Carried 10 | 1 9 5 9 10 9 2 8 7 10 Average Carried 2 | . 1 4 1 . 1 1 3 2 7 Final Capacity 10 | 10 10 10 10 10 10 10 10 10 10 Final Carried 5 | 1 4 5 1 2 1 2 4 2 5 Class Distribution -------------------- 44% | Tank 29% | Mutant 26% | Gladiator Dominant Class ---------------- Mutant | -10/Materials Mutant | -10/Mines Tank | -9/Materials Tank | -9/Mines Tank | -9/Exiles Gladiator | -8/Mines Gladiator | -8/Materials Gladiator | -7/Factory Mutant | -7/DSF Resources | -11 -10 -10 -9 -9 -9 -8 -8 -7 -7 ----------- Run | Yrd Mat Min Mat Min Exi Min Mat Fac DSF Matter Collected 512 | . 234 . 106 64 . 20 40 . 48 Remotely . | . . . . . . . . . . Salvage Created 1427 | . 422 . 194 368 . 165 166 . 112 Parts . | . . . . . . . . . . Haulers Intercepted 1 | . 1 . . . . . . . . Recyclers Shooed 1 | . 1 . . . . . . . . Parts Field Recycled . | . . . . . . . . . . Retrieved Matter . | . . . . . . . . . . Parts Self-Destructed . | . . . . . . . . . . Prevented . | . . . . . . . . . . Kills | -11 -10 -10 -9 -9 -9 -8 -8 -7 -7 ------- Run | Yrd Mat Min Mat Min Exi Min Mat Fac DSF Combat Hostiles Destroyed 41 | . 6 . 4 12 . 8 5 . 6 Melee 17 | . 1 . . . . 8 5 . 3 Guns 2 | . 2 . . . . . . . . Cannons 19 | . . . 4 12 . . . . 3 AOE 2 | . 2 . . . . . . . . Classes Destroyed 13 | . 5 . 2 4 . 1 . . 1 Worker 1 | . . . 1 . . . . . . Hauler 1 | . 1 . . . . . . . . Recycler 1 | . 1 . . . . . . . . Operator 1 | . 1 . . . . . . . . Watcher 3 | . 2 . . . . . 1 . . Swarmer 16 | . . . . 7 . 6 3 . . Cutter 6 | . . . . . . . . . 6 Grunt 13 | . 6 . 3 1 . 1 2 . . Brawler 1 | . . . . 1 . . . . . Duelist 1 | . . . . . . 1 . . . Sentry 1 | . . . 1 . . . . . . Demolisher 1 | . . . . 1 . . . . . Assembled 2 | . . . . 2 . . . . . Best Kill Streak 5 | . 4 . 5 5 . 4 3 . 3 Combat Bots Only 5 | . 4 . 4 5 . 4 3 . 3 Max Kills in Single Turn 2 | . 2 . 1 1 . 1 1 . 2 Gunslinging . | . . . . . . . . . . Exploded 2 | . 2 . . . . . . . . Melee 2 | . 1 . . . . 1 1 . 2 Uniques/NPCs Destroyed . | . . . . . . . . . . Combat | -11 -10 -10 -9 -9 -9 -8 -8 -7 -7 -------- Run | Yrd Mat Min Mat Min Exi Min Mat Fac DSF Hostile Shots Fired 245 | . 32 . 14 59 . 81 10 . 49 Missed 63 | . 9 . 2 8 . 28 3 . 13 Damage Taken 2205 | . 253 . 114 646 . 403 42 . 747 Core 413 | . 60 . . 69 . 131 9 . 144 Absorbed by Shields 547 | . 93 . 43 158 . 73 19 . 161 Ignored by Resistances 26 | . . . . . . . . . 26 Core Remaining (%) 81 | 100 . 76 . . . 50 98 . . Volleys Fired 69 | . 24 2 7 29 . . . . 7 Largest 3 | . 2 2 3 3 . . . . 3 Hottest 180 | . 136 120 180 180 . . . . 159 Shots Fired 177 | . 48 4 21 87 . . . . 17 Gun 38 | . 30 . . . . . . . 8 Cannon 129 | . 8 4 21 87 . . . . 9 Launcher 10 | . 10 . . . . . . . . Special . | . . . . . . . . . . Kinetic 33 | . 16 . . . . . . . 17 Thermal 122 | . 10 4 21 87 . . . . . Explosive . | . . . . . . . . . . Electromagnetic 22 | . 22 . . . . . . . . Robot Hit Streak 7 | . 7 . 5 6 . . . . 2 Robot Miss Streak 10 | . 4 . 3 6 . . . . 10 Penetration Max . | . . . . . . . . . . Secondary Targets . | . . . . . . . . . . Shots Hit Robots 109 | . 19 . 10 35 . 21 10 . 14 Core Hits 66 | . 15 . 5 18 . 8 6 . 14 Critical Kills . | . . . . . . . . . . Critical Parts Destroyed . | . . . . . . . . . . Critical Strikes . | . . . . . . . . . . Melee Attacks 96 | . 12 . . . . 44 23 3 14 Impact 12 | . 12 . . . . . . . . Slashing 80 | . . . . . . 40 23 3 14 Piercing 4 | . . . . . . 4 . . . Sneak Attacks 2 | . . . . . . . 2 . . Combat Hostiles . | . . . . . . . . . . Follow-up Attacks 17 | . 2 . . . . 9 4 . 2 Damage Inflicted 3206 | . 700 . 278 926 . 513 465 . 324 Guns 186 | . 159 . . . . . . . 27 Cannons 1345 | . . . 278 926 . . . . 141 Explosions 285 | . 285 . . . . . . . . Melee 1390 | . 256 . . . . 513 465 . 156 Ramming . | . . . . . . . . . . Kinetic 285 | . 117 . . . . . . . 168 Thermal 1245 | . 41 . 278 926 . . . . . Explosive . | . . . . . . . . . . Electromagnetic 286 | . 286 . . . . . . . . Impact 256 | . 256 . . . . . . . . Slashing 1134 | . . . . . . 513 465 . 156 Piercing . | . . . . . . . . . . Highest Corruption 1 | . 1 1 . . . . . . . Average Corruption 1 | . 1 1 . . . . . . . Corruption Purged . | . . . . . . . . . . Corruption Blocked . | . . . . . . . . . . Overload Shots . | . . . . . . . . . . Overflow Damage 85 | . 45 . . 11 . 29 . . . Projectiles 11 | . . . . 11 . . . . . Explosions 12 | . 12 . . . . . . . . Melee 62 | . 33 . . . . 29 . . . Knockbacks 6 | . . . . . . . . . 6 Impact . | . . . . . . . . . . Kinetic 6 | . . . . . . . . . 6 Secondary . | . . . . . . . . . . Self-Inflicted Damage 70 | . 70 . . . . . . . . Shots 6 | . 6 . . . . . . . . Rammed . | . . . . . . . . . . Targets Rammed . | . . . . . . . . . . Kicked . | . . . . . . . . . . Crushed . | . . . . . . . . . . Highest Temperature 255 | . 207 54 192 255 . . . . 3 Average Temperature 71 | . 45 32 60 90 . . . . 2 Received Heat Transfer 234 | . 131 . 40 45 . 12 6 . . Siege Activations . | . . . . . . . . . . Robots Corrupted . | . . . . . . . . . . Combat Hostiles . | . . . . . . . . . . Parts Fried . | . . . . . . . . . . Impact Corruptions 2 | . 2 . . . . . . . . Robots Melted . | . . . . . . . . . . Combat Hostiles . | . . . . . . . . . . Parts Melted 2 | . . . . 2 . . . . . Heat Transferred 1974 | . 50 . 444 1480 . . . . . Parts Sabotaged . | . . . . . . . . . . Parts Stolen . | . . . . . . . . . . Parts Stripped . | . . . . . . . . . . Power Chain Reactions 1 | . 1 . . . . . . . . Alert | -11 -10 -10 -9 -9 -9 -8 -8 -7 -7 ------- Run | Yrd Mat Min Mat Min Exi Min Mat Fac DSF Peak Influence 334 | . 324 63 117 260 . 300 334 196 282 Initial 151 | . . 48 24 12 . . 117 151 137 Average 158 | . 138 51 48 172 . 142 168 177 211 Maximum Alert Level 1 | . 1 . . 1 . 1 1 . 1 Low Security (%) 66 | 100 82 100 100 61 . 75 79 100 24 Level 1 33 | . 17 . . 38 . 24 20 . 75 Level 2 . | . . . . . . . . . . Level 3 . | . . . . . . . . . . Level 4 . | . . . . . . . . . . Level 5 . | . . . . . . . . . . High Security . | . . . . . . . . . . Max Security . | . . . . . . . . . . Squads Dispatched 9 | . 1 . 1 1 . . 2 . 4 Investigation 3 | . 1 . 1 . . . 1 . . Extermination . | . . . . . . . . . . Reinforcement 5 | . . . . . . . 1 . 4 Assault 1 | . . . . 1 . . . . . Garrison . | . . . . . . . . . . Intercept . | . . . . . . . . . . Searches Triggered . | . . . . . . . . . . Construction Impeded . | . . . . . . . . . . Haulers Reinforced . | . . . . . . . . . . Active Scanning Responses . | . . . . . . . . . . Cargo Convoy Interrupts . | . . . . . . . . . . Stealth | -11 -10 -10 -9 -9 -9 -8 -8 -7 -7 --------- Run | Yrd Mat Min Mat Min Exi Min Mat Fac DSF Distress Signals 1 | . 1 . . . . . . . . Communications Jammed . | . . . . . . . . . . Distress Signals . | . . . . . . . . . . Times Spotted 76 | . 10 . 3 22 . 19 9 . 13 Peak Tracking Total 8 | . 5 . 3 8 . 7 3 . 4 Tactical Retreats 6 | . . . . 1 . 2 1 . 2 Traps | -11 -10 -10 -9 -9 -9 -8 -8 -7 -7 ------- Run | Yrd Mat Min Mat Min Exi Min Mat Fac DSF Traps Triggered 1 | . 1 . . . . . . . . Indirectly 1 | . 1 . . . . . . . . Trap Hack Attempts . | . . . . . . . . . . Triggered . | . . . . . . . . . . Disarmed . | . . . . . . . . . . Reprogrammed . | . . . . . . . . . . Reused . | . . . . . . . . . . Traps Extracted . | . . . . . . . . . . Installed . | . . . . . . . . . . Triggered . | . . . . . . . . . . Machines | -11 -10 -10 -9 -9 -9 -8 -8 -7 -7 ---------- Run | Yrd Mat Min Mat Min Exi Min Mat Fac DSF Machines Disabled 19 | . 7 1 . 3 . 3 1 3 1 Max in Single Turn 1 | . 1 1 . 1 . 1 1 1 1 Machines Repaired . | . . . . . . . . . . Machines Dismantled . | . . . . . . . . . . Machines Sabotaged . | . . . . . . . . . . Overloaded Fab Kills . | . . . . . . . . . . Hacking | -11 -10 -10 -9 -9 -9 -8 -8 -7 -7 --------- Run | Yrd Mat Min Mat Min Exi Min Mat Fac DSF Machines Accessed 7 | . 3 . 1 1 . . 1 1 . Terminals 7 | . 3 . 1 1 . . 1 1 . Fabricators . | . . . . . . . . . . Repair Stations . | . . . . . . . . . . Recycling Units . | . . . . . . . . . . Scanalyzers . | . . . . . . . . . . Garrison Access . | . . . . . . . . . . Total Hacks 19 | . 7 . 4 4 . . 2 2 . Successful 6 | . 1 . 1 3 . . . 1 . Failed 13 | . 6 . 3 1 . . 2 1 . Catastrophic 4 | . 2 . 1 . . . 1 . . Database Lockouts . | . . . . . . . . . . Manual 4 | . . . . 3 1 . . . . Terminals 19 | . 7 . 4 4 . . 2 2 . Fabricators . | . . . . . . . . . . Repair Stations . | . . . . . . . . . . Recycling Units . | . . . . . . . . . . Scanalyzers . | . . . . . . . . . . Garrison Access . | . . . . . . . . . . Terminal Hacks 6 | . 1 . 1 3 . . . 1 . Record 3 | . . . . 3 . . . . . Open DSF 1 | . . . . . . . . 1 . Unreport Threat 1 | . . . 1 . . . . . . Zone Layout 1 | . 1 . . . . . . . . Fabricator Hacks . | . . . . . . . . . . Repair Station Hacks . | . . . . . . . . . . Recycling Unit Hacks . | . . . . . . . . . . Scanalyzer . | . . . . . . . . . . Garrison Access Hacks . | . . . . . . . . . . Unauthorized Hacks . | . . . . . . . . . . Terminals . | . . . . . . . . . . Fabricators . | . . . . . . . . . . Repair Stations . | . . . . . . . . . . Recycling Units . | . . . . . . . . . . Scanalyzers . | . . . . . . . . . . Garrison Access . | . . . . . . . . . . Data Cores Recovered . | . . . . . . . . . . Used . | . . . . . . . . . . Hacking Detections 6 | . 2 . 1 1 . . 1 1 . Full Trace Events 3 | . 1 . 1 . . . 1 . . Feedback Events . | . . . . . . . . . . Feedback Blocked . | . . . . . . . . . . Robot Schematics Acquired . | . . . . . . . . . . Robots Built . | . . . . . . . . . . Authchips . | . . . . . . . . . . Time . | . . . . . . . . . . Total Robot Build Rating . | . . . . . . . . . . Part Schematics Acquired . | . . . . . . . . . . Parts Built . | . . . . . . . . . . Authchips . | . . . . . . . . . . Time . | . . . . . . . . . . Total Part Build Rating . | . . . . . . . . . . Parts Repaired . | . . . . . . . . . . Time . | . . . . . . . . . . Parts Recycled . | . . . . . . . . . . Recycled Matter . | . . . . . . . . . . Retrieved Matter . | . . . . . . . . . . Retrieved Components . | . . . . . . . . . . Parts Scanalyzed . | . . . . . . . . . . Part Schematics Acquired . | . . . . . . . . . . Parts Damaged . | . . . . . . . . . . Bothacking | -11 -10 -10 -9 -9 -9 -8 -8 -7 -7 ------------ Run | Yrd Mat Min Mat Min Exi Min Mat Fac DSF Used RIF Installer . | . . . . . . . . . . Robots Hacked . | . . . . . . . . . . Non-combat . | . . . . . . . . . . Combat . | . . . . . . . . . . Robot Hacks Applied . | . . . . . . . . . . Relay Couplers Released . | . . . . . . . . . . Fabnet Peak Effective % . | . . . . . . . . . . Robots Rewired . | . . . . . . . . . . Allies Hacked . | . . . . . . . . . . Hacks Repelled . | . . . . . . . . . . Allies | -11 -10 -10 -9 -9 -9 -8 -8 -7 -7 -------- Run | Yrd Mat Min Mat Min Exi Min Mat Fac DSF Total Allies 3 | . . . . 3 . . . . . Largest Group 3 | . . . . 3 . . . . . Highest-Rated Group 72 | . . . . 72 . . . . . Highest-Rated Ally 31 | . . . . 31 . . . . . Total Orders . | . . . . . . . . . . Ally Attacks 25 | . . . . 25 . . . . . Total Damage 396 | . . . . 396 . . . . . Kills 4 | . . . . 4 . . . . . Allies Corrupted 1 | . . . . 1 . . . . . Allies Melted . | . . . . . . . . . . Intel | -11 -10 -10 -9 -9 -9 -8 -8 -7 -7 ------- Run | Yrd Mat Min Mat Min Exi Min Mat Fac DSF Robot Analysis Total . | . . . . . . . . . . Derelict Logs Recovered . | . . . . . . . . . . Drone Launches . | . . . . . . . . . . Drone Recoveries . | . . . . . . . . . . Decoded 0b10 Intel 1 | . . . . . . . . . 1 Traps 1 | . . . . . . . . . 1 Exploration | -11 -10 -10 -9 -9 -9 -8 -8 -7 -7 ------------- Run | Yrd Mat Min Mat Min Exi Min Mat Fac DSF Turns Passed 2368 | 8 409 61 105 753 290 175 214 33 320 Spaces Moved 1855 | 19 235 50 56 552 345 195 219 64 120 Core 13 | 6 . . . . 4 . . . 3 Treads . | . . . . . . . . . . Legs . | . . . . . . . . . . Wheels 1031 | . 192 50 56 552 166 . . . 15 Hover 589 | . . . . . 175 195 219 . . Flight 222 | 13 43 . . . . . . 64 102 Fastest Speed 34 | 37 37 110 110 110 46 46 46 34 34 Average Speed 83 | 41 96 110 110 114 79 46 49 34 54 Slowest Speed 150 | 50 110 110 110 115 115 46 106 34 150 Overloaded Moves . | . . . . . . . . . . Propulsion Burnouts . | . . . . . . . . . . Robots Hopped . | . . . . . . . . . . Cave-ins Triggered . | . . . . . . . . . . Exploration Rate (%) 34 | 3 38 20 7 82 61 52 30 2 49 Regions Visited 9 Branch Regions 4 Pre-discovered Areas . | . . . . . . . . . . Known Exits Taken 1 | . . . . . . . . 1 . Unknown Exits Taken 8 | 1 1 1 1 1 1 1 1 . . Scrap Searched . | . . . . . . . . . . Spaces Dug . | . . . . . . . . . . Terrain Destroyed 14 | . 2 . 4 8 . . . . . Melee . | . . . . . . . . . . Projectile 12 | . . . 4 8 . . . . . AOE 2 | . 2 . . . . . . . . Terrain Rammed . | . . . . . . . . . . Walls Destroyed . | . . . . . . . . . . Machines Disabled . | . . . . . . . . . . Actions | -11 -10 -10 -9 -9 -9 -8 -8 -7 -7 --------- Run | Yrd Mat Min Mat Min Exi Min Mat Fac DSF Total 2514 | 19 364 52 89 620 375 230 315 76 374 Wait 307 | . 62 . 12 14 . 4 61 . 154 Move 1846 | 18 234 49 55 551 344 194 218 63 120 Hop . | . . . . . . . . . . Pick Up 12 | . . 1 1 2 1 . . . 7 Fast Attach 3 | . . . . . . . . . 3 Attach 26 | . 3 . 3 3 2 . 4 . 11 Detach 64 | 1 15 . 4 1 10 . 10 4 19 Swap 6 | . 2 . . . . 1 . . 3 Drop 110 | . 14 . 7 20 18 . 6 6 39 Fire 69 | . 24 2 7 29 . . . . 7 Melee 71 | . 10 . . . . 31 16 3 11 Ram . | . . . . . . . . . . Kick . | . . . . . . . . . . Crush . | . . . . . . . . . . Escape Stasis . | . . . . . . . . . . Rewire . | . . . . . . . . . . Trap . | . . . . . . . . . . Miscellaneous . | . . . . . . . . . . Route ------- -11/Scrapyard -10/Materials (discovered 2 exits: *Mat / [*Min]) -10/Mines -9/Materials -9/Mines (discovered 3 exits: *Mat x2 / *Exi) -9/Exiles -8/Mines (discovered 2 exits: *Mat x2) -8/Materials -7/Factory -7/DSF History --------- Turn | Location | Event 3 | -11/Scrapyard | Discovered new exit (range 14) 9 | -11/Scrapyard | Entered Materials 314 | -10/Materials | Build established: Mutant 347 | -10/Materials | Discovered new exit (range 4) 362 | -10/Materials | Discovered new exit (range 15) 418 | -10/Materials | Entered Mines 443 | -10/Mines | Received a Rocket Launcher from a helpful Derelict 471 | -10/Mines | Discovered new exit (range 5) 479 | -10/Mines | Entered Materials 479 | -9/Materials | Evolved 2 slots: Utility x1, Weapon x1 527 | -9/Materials | Discovered new exit (range 13) 584 | -9/Materials | Entered Mines 744 | -9/Mines | Found Supercharged Integrated Reactor 744 | -9/Mines | Installed Supercharged Integrated Reactor, increased core energy generation (+15) 790 | -9/Mines | Build established: Tank 1052 | -9/Mines | Met a Derelict testing a Signal Generator 1063 | -9/Mines | Found Signal Generator 1173 | -9/Mines | Assembled infested the area 1205 | -9/Mines | A weapon hastily lodged in a ceiling crevice suddenly fell to the ground 1236 | -9/Mines | Met 8R-AWN 1302 | -9/Mines | Discovered new exit (range 14) 1306 | -9/Mines | Discovered new exit (range 13) 1333 | -9/Mines | Discovered new exit (range 5) 1337 | -9/Mines | Entered Exiles 1366 | -9/Exiles | Welcomed by 8R-AWN 1385 | -9/Exiles | Met EX-HEX 1419 | -9/Exiles | Met EX-BIN 1438 | -9/Exiles | Aligned with FarCom system 1439 | -9/Exiles | Given EX-Vault access code 1485 | -9/Exiles | Opened EX-Vault 1519 | -9/Exiles | Warned to stay clear of 0b10 Research branches 1581 | -9/Exiles | Learned about 8R-AWN's background 1606 | -9/Exiles | Met EX-DEC 1623 | -9/Exiles | Discovered new exit (range 10) 1627 | -9/Exiles | Entered Mines 1795 | -8/Mines | Discovered new exit (range 9) 1799 | -8/Mines | Build established: Gladiator 1799 | -8/Mines | Discovered new exit (range 11) 1802 | -8/Mines | Entered Materials 1802 | -8/Materials | Evolved 2 slots: Utility x2 2009 | -8/Materials | Discovered new exit (range 15) 2016 | -8/Materials | Entered Factory 2016 | -7/Factory | Evolved 2 slots: Propulsion x1, Utility x1 2049 | -7/Factory | Identified exit to DSF 2049 | -7/Factory | Entered DSF 2077 | -7/DSF | Additional patrols routed to DSF 2369 | -7/DSF | Self-destructed Last Messages --------------- 02352_ Dropped Imp. Shield Generator. 02352_ Dropped Force Field. 02353_ Acquired Hyp. Gauss Rifle. 02360_ HV Slug penetrates H-61 Shepherd. 02361_ Knocked back. 02362_ Acquired 3 matter. 02362_ ALERT: Hostile activity reported, dispatching reinforcements to area. 02362_ Knocked back. 02362_ C-17 Slicer knocked back. 02363_ HV Slug penetrates Wall. 02363_ HV Slug penetrates C-17 Slicer. 02364_ Coil Gun severed. 02365_ Particle Charger destroyed. 02366_ HV Slug penetrates C-17 Slicer. 02366_ HV Slug penetrates Wall. 02366_ HV Slug penetrates C-17 Slicer. 02366_ HV Slug penetrates Wall. 02367_ Penetrated by Slug. 02368_ Hyp. Gauss Rifle severed. Map ----- +----------------------------------------------------+ | | | | | | | ???????????????????????????????? | | ???????????????????????????????? | | ???????????????????????????????? | | ???????????????????????????????? | | ?????????""#???????????????????? | | ?????????#"#???????????????????? | | ??????####"##???????#########??? | | ??????#"""""######### = #??? | | ??????#"""""## # #=!== #??? | | ???#"##"%% ^ ===%% #??? | | ???#""""" =C/=!== #??? | | ???####"" ## # =###== ###??? | | ??????### ### # ###== ###??? | | ???????## ########## #??? | | ???????# #??????# % #??? | | ???????# #??????# #??? | | ???????## ###??????#"# ###??? | | ???????# ]]=%#??????# #??? | | ???????# ]=/=#??????# #??? | | ???????#%]! =#??????# #??? | | ??????###!*###??????### ###??? | | ?????## c]!#??????????# #????? | | ?????#;@c ## # #?? ????? | | ?????##[c =! ????? | | ??????# %! H ???? | | ??????# ???? | | ??????# ## # ## ##??? | | ??????# #? #? #?? ##???? | | ??????######??###???#?? #????? | | ????????????????????????? ?????? | | ???????????????????????????????? | | ???????????????????????????????? | | ???????????????????????????????? | | ???????????????????????????????? | | ???????????????????????????????? | | ?????????????????????????^?????? | | ???????????????????????????????? | | ???????????????????????????????? | | ???????????????????????????????? | | ???????????????????????????????? | | ???????????????????????????????? | | ???????????????????????????????? | | ???????????????????????????????? | | ???????????????????????????????? | | ???????????????????????????????? | | ???????????????????????????????? | | ???????????????????????????????? | +----------------------------------------------------+ Best States ------------- Heat Dissipation 50 Energy Generation 33 Energy Capacity 280 Matter Stores 300 Matter Capacity 300 Sight Range 16 Terrain Scan Density 10 ECM Strength 1 Additional Mass Support 9 Armor Coverage 225 Resistance: KI 20 Melee Speed Boost 20 Evasion (%) 71 Particle Charging 15 Item Schematics ----------------- None Robot Schematics ------------------ None Fabricated ------------ Nothing Alien Tech Used ----------------- Supercharged Integrated Reactor Achievements -------------- Alien Tech Ambidextrous Challenges ------------ None Cogshop Purchases (147) ------------------------- Hvy. EM Pulse Gun (699) Hvy. EM Pulse Gun (699) Flight Unit (899) Flight Unit (899) Lgt. Ion Engine (599) Shield Generator (699) Mace (629) Cld. Ion Engine (1399) Imp. Flight Unit (1049) Imp. Flight Unit (1049) Sub. Monowheel (669) Sub. Monowheel (669) Mace (685) Med. Armor Plating (621) Imp. Medium Laser (887) Imp. Medium Laser (887) Particle Cannon (660) Particle Cannon (660) EMP Blaster (1066) EMP Blaster (1066) Shotgun (559) Shotgun (559) Beam Cannon (554) Beam Cannon (554) Ion Cannon (800) Ion Cannon (800) Ion Cannon (1475) Hrd. Medium Armor Plating (763) Cooling System (671) Shield Generator (751) Prc. Shock Rifle (Loot Box) Hvy. Particle Gun (Loot Box) Imp. Medium Laser (Loot Box) Imp. Core Shielding (Loot Box) Matter Filter (Loot Box) Arc Projector (Loot Box) Cld. Cesium-ion Thruster (Loot Box) Arm. Huge Wheel (Loot Box) Imp. Assault Rifle (Loot Box) Recalibrator (Loot Box) Lgt. EM Pulse Cannon (Loot Box) Terrain Scanner (Loot Box) Supercharged Integrated Reactor (Loot Box) Wheel (Loot Box) Cld. Pulse Rifle (Loot Box) Adv. Beam Rifle (Loot Box) Gauss Rifle (Loot Box) Carbon-fiber Leg (Loot Box) Hvy. Machine Gun (Loot Box) Imp. Weapon Shielding (Loot Box) Imp. EM Pulse Cannon (Loot Box) Beam Rifle (Loot Box) Adv. ECM Suite (Loot Box) Great Axe (Loot Box) Thermic Laser (Loot Box) Lgt. Nuclear Core (Loot Box) Trap Scanner (Loot Box) Com. Battery (Loot Box) Imp. Deuterium Engine (Loot Box) Imp. System Shield (Loot Box) Imp. Terrain Scanner (Loot Box) ECM Suite (Loot Box) Adv. Weight Redist. System (Loot Box) Xenon Bombardment Thruster (Loot Box) Mak. Axe (Loot Box) Particle Gun (Loot Box) Hvy. Flak Cannon (Loot Box) Mak. Laser (Loot Box) Gauss Rifle (Loot Box) Force Booster (Loot Box) CPS Tube (721) Lgt. Deuterium Engine (796) Aerolev Unit (943) Aerolev Unit (943) Blade Saw (1450) Blade Saw (1450) Adv. Weight Redist. System (679) Reaction Control System (679) Actuator Array (679) Imp. Shield Generator (997) Mak. Sword (1812) Chainsword (1812) Chainsword (1812) Mic. Nuclear Core (848) Imp. Cesium-ion Thruster (1072) Imp. Cesium-ion Thruster (1072) Xenon Bombardment Thruster (1072) Xenon Bombardment Thruster (1072) Imp. VTOL Module (953) Imp. VTOL Module (953) Force Booster (1046) Reaction Control System (930) Microactuators (1046) Biomechanical Wings (2179) Biomechanical Wings (2179) Biomechanical Wings (2179) 0b10 Decoder Chip [Scout] (840) Power Sword (1949) Carbide Saw (1949) Carbide Saw (1949) Reactive Plating (731) Force Field (1342) Nuclear Pulse Thruster (2840) Nuclear Pulse Thruster (2840) Nuclear Pulse Thruster (2840) Imp. Shield Generator (1207) Imp. Actuator Array (1342) Imp. Reaction Control System (1342) Weapon Mount (1342) Force Field (1342) Imp. Shield Generator (1207) Lgt. Fission Core (834) Imp. Surge Thruster (2840) Imp. Surge Thruster (2840) Imp. Surge Thruster (2840) Imp. Surge Thruster (2840) Gravmag Array (1063) Imp. Gravmag System (1063) Mak. Hover Unit (1063) Mak. Hover Unit (1063) Mak. Hover Unit (1063) Cesium-ion Thruster (2271) Cesium-ion Thruster (2271) Cesium-ion Thruster (2271) Mak. Hover Unit (1063) Mak. Hover Unit (1063) Mak. Hover Unit (1063) Mak. Flight Unit (2555) Mak. Flight Unit (2555) Mak. Flight Unit (2555) Imp. Shield Generator (1207) Hvy. Plasma Cannon (947) Hvy. Plasma Cannon (947) Cold Fusion Reactor (730) Focal Shield (2873) Particle Charger (2298) Arm. Huge Wheel (624) Arm. Huge Wheel (624) Arm. Huge Wheel (624) Hvy. Flak Cannon (660) Hvy. Flak Cannon (660) Hvy. Flak Cannon (660) Coil Gun (660) Coil Gun (660) Coil Gun (660) Hyp. Gauss Rifle (660) Hyp. Gauss Rifle (660) Game ------ Seed ExplosiveDiametricKit Manual? 0 Play Time 00:43:40 Cumulative 37.6 hours Start 2024.05.15 @ 17:01:04 End 2024.05.15 @ 18:05:50 Sessions 3 Manual Loads 0 Difficulty Rogue Special Mode AFD2019/Pay2Buy Game No. 37 Rogue 37 Adventurer 0 Explorer 0 Win Type - Total 1 Types 1/0/0/0/0/0/0/0/0 Lore% 28 Gallery% 30 Achievement% 40 Wizard Run 0 Options --------- Layout 0 ASCII 0 Keyboard 0 Movement Mouse Keybinds 0 Fullscreen 2 Font 14/SmallcapsGlow Map View 36x27 Zoom Use 99% Tactical HUD 1 Map Filters NONE Filters NONE Steam 1 RUN: eb5ac9dc-bf08-4818-8054-bcefcb07d2f7